bitfinex/quotes_ETHUSD_20240825
["timestamp","ask_amount","ask_price","bid_price","bid_amount"]
[1724589477557,2.4444,2756.1,2755.9,0.56767208]
[1724589477742,2.4444,2756.1,2756.0,0.56767208]
[1724589478858,2.4444,2756.1,2756.0,0.5676643]
[1724589480355,1.51997153,2756.2,2756.0,0.5676643]
[1724589480557,1.51997153,2756.2,2755.8,3.6287]
[1724589480723,1.51997153,2756.2,2755.8,4.354459]
[1724589480931,1.51997153,2756.2,2755.9,0.56765901]
[1724589481125,1.51997153,2756.2,2756.0,0.56765901]
[1724589481313,1.51997153,2756.2,2755.8,6.637059]
[1724589481513,1.51997153,2756.2,2755.9,0.56767807]
[1724589481840,1.51997153,2756.1,2756.0,0.56767807]
[1724589483762,1.51997153,2756.1,2755.8,3.6287]
[1724589483925,1.51997153,2756.1,2755.9,0.56768996]
[1724589484254,1.51997153,2756.1,2755.8,3.6287]
[1724589485057,1.51997153,2756.1,2755.9,0.56769011]
[1724589485258,1.51997153,2756.1,2755.6,3.62889]
[1724589485259,2.2851,2755.9,2755.6,3.62889]
[1724589485413,2.2851,2755.9,2755.7,0.56772157]
[1724589485612,2.2851,2755.9,2755.8,0.56772157]
[1724589485613,3.80507153,2755.9,2755.8,0.56772157]
[1724589486625,2.2851,2755.9,2755.8,0.56772157]
[1724589486823,3.80507153,2755.9,2755.8,0.56772716]
[1724589487365,2.2851,2755.9,2755.8,0.56772716]
[1724589487711,2.2851,2755.9,2755.6,3.62889]
[1724589488012,2.2851,2755.9,2755.7,0.56772725]
[1724589488209,2.2851,2755.9,2755.8,0.56772725]
[1724589490449,7.20992061,2755.9,2755.8,0.56772725]
[1724589490613,2.3346,2755.8,2755.3,0.90845855]
[1724589490816,1.52029063,2755.7,2755.4,0.5677898]
[1724589491044,1.52029063,2755.7,2755.5,0.5677898]
[1724589491245,2.56634002,2755.7,2755.2,3.62942]
[1724589491457,1.52029063,2755.7,2755.3,0.56779988]
[1724589491641,1.52029063,2755.7,2755.3,0.5677985]
[1724589492010,5.14921063,2755.7,2755.3,0.5677985]
[1724589492134,2.3346,2755.6,2755.4,0.5677985]
[1724589492332,7.48394063,2755.6,2755.0,3.62972]
[1724589492534,7.48394063,2755.6,2755.1,0.56781952]
[1724589492737,7.48394063,2755.6,2755.2,0.56781952]
[1724589492948,7.48394063,2755.6,2755.0,3.62972]
[1724589493162,7.48394063,2755.6,2755.1,0.56783006]
[1724589493360,3.85489063,2755.6,2755.2,0.56783006]
[1724589493660,3.85489063,2755.6,2755.0,4.589567]
[1724589493661,7.48390063,2755.6,2755.0,4.589567]
[1724589493963,7.48390063,2755.6,2755.1,0.56783337]
[1724589494164,7.48390063,2755.6,2755.2,0.56783337]
[1724589494461,7.48390063,2755.6,2755.0,4.589567]
[1724589494630,7.48390063,2755.6,2755.1,0.56783041]
[1724589494962,7.48390063,2755.6,2755.2,0.56783041]
[1724589495120,7.48390063,2755.6,2755.0,4.589567]
[1724589495471,7.48390063,2755.6,2755.1,0.56783127]
[1724589495638,3.62948,2755.3,2754.7,5.96931]
[1724589495972,3.62948,2755.3,2754.8,0.56786556]
[1724589496275,3.62948,2755.3,2754.9,0.56786556]
[1724589496465,7.25836,2755.5,2755.0,0.56786556]
[1724589496634,3.62915,2755.5,2754.9,3.62981]
[1724589496839,3.62915,2755.5,2755.0,2.702181]
[1724589498273,3.62915,2755.5,2755.0,6.331921]
[1724589500967,3.62915,2755.5,2754.6,5.88549]
[1724589500968,3.62945,2755.3,2754.6,5.88549]
[1724589501477,3.62917,2755.5,2754.4,0.5689407]
[1724589501478,3.62917,2755.5,2754.8,3.6299]
[1724589501679,3.62917,2755.5,2754.9,2.2553]
[1724589501880,1.52029063,2755.7,2755.3,3.62935]
[1724589502179,7.46,2755.8,2755.3,9.51394]
[1724589502382,7.46,2755.8,2755.5,3.62906]
[1724589502726,1.52029063,2756.2,2755.8,3.62862]
[1724589503041,11.77963116,2756.3,2755.8,7.25724]
[1724589503042,8.98029063,2756.3,2755.8,7.25724]
[1724589503228,8.98029063,2756.3,2755.6,2.2553]
[1724589503229,1.52029063,2756.4,2756.1,5.88349]
[1724589503431,9.35693116,2756.6,2756.1,5.88349]
[1724589503432,8.98029063,2756.6,2756.1,5.88349]
[1724589506477,12.60795063,2756.6,2756.1,2.2553]
[1724589506775,1.52029063,2756.5,2755.9,6.05723]
[1724589508134,3.6278,2756.5,2755.9,6.05723]
[1724589510983,12.60795063,2756.6,2755.9,9.68571]
[1724589511133,12.60795063,2756.6,2755.9,6.05718]
[1724589511334,12.60795063,2756.6,2756.0,3.62843]
[1724589512651,12.60795063,2756.6,2756.0,4.25298196]
[1724589513636,12.60795063,2756.6,2756.1,3.62829]
[1724589513837,11.08766,2756.6,2756.1,3.62829]
[1724589514033,12.60795063,2756.6,2756.1,3.62829]
[1724589514986,5.14795063,2756.6,2756.1,3.62829]
[1724589516481,5.14795063,2756.6,2756.1,4.6592922]
[1724589518489,5.14795063,2756.6,2756.1,1.0310022]
[1724589518658,5.14795063,2756.6,2756.0,4.25297196]
[1724589518854,3.62783,2756.5,2756.0,0.62455196]
[1724589520301,7.25543,2756.6,2756.0,4.25297196]
[1724589520651,8.77572063,2756.6,2756.0,4.25297196]
[1724589521245,5.14795063,2756.6,2756.0,4.25297196]
[1724589521950,8.77571063,2756.6,2756.0,4.25297196]
[1724589522484,8.77570063,2756.6,2756.0,4.25297196]
[1724589523760,0.06321104,2756.5,2756.0,4.25297196]
[1724589526171,0.06321104,2756.5,2756.1,4.6593252]
[1724589526505,0.06321104,2756.5,2756.2,2.42]
[1724589531202,0.06321104,2756.5,2756.2,6.04807]
[1724589531423,0.06321104,2756.5,2756.1,4.6593252]
[1724589531424,0.06321104,2756.5,2756.4,6.04792]
[1724589531564,9.35547348,2756.9,2756.4,6.04792]
[1724589531565,1.52029063,2756.9,2756.5,3.62768]
[1724589531900,5.51062063,2757.0,2756.5,7.01524]
[1724589532073,5.14742063,2757.0,2756.5,7.01524]
[1724589532906,1.52029063,2757.0,2756.5,7.01524]
[1724589535103,8.77442063,2757.1,2756.5,7.01524]
[1724589535971,5.14730063,2757.1,2756.5,7.01524]
[1724589536172,1.52029063,2757.2,2756.7,2.42]
[1724589536804,3.627,2757.1,2756.7,2.42]
[1724589537157,3.62715,2757.0,2756.6,0.701524]
[1724589537290,3.62715,2757.0,2756.5,3.38756]
[1724589541617,5.14744063,2757.0,2756.5,3.38756]
[1724589543506,5.14744063,2757.0,2756.5,2.42]
[1724589544473,1.52029063,2756.9,2756.5,2.42]
[1724589545325,5.14744063,2757.0,2756.5,2.42]
[1724589545548,1.52029063,2756.9,2756.5,2.42]
[1724589545915,5.14770063,2756.8,2756.5,2.42]
[1724589546115,3.62741,2756.8,2756.5,2.42]
[1724589546560,5.14770063,2756.8,2756.5,2.42]
[1724589546769,5.14770063,2756.8,2756.1,2.2677]
[1724589546770,3.62779,2756.5,2756.1,2.2677]
[1724589546917,3.62793,2756.4,2756.1,2.2677]
[1724589547239,3.62779,2756.5,2756.1,2.2677]
[1724589547240,5.14808063,2756.5,2756.1,2.2677]
[1724589548525,1.52029063,2756.4,2756.1,2.2677]
[1724589549448,5.14808063,2756.5,2756.1,2.2677]
[1724589551862,1.52029063,2756.4,2756.0,3.62837]
[1724589552362,1.52029063,2756.3,2756.0,3.62837]
[1724589553360,1.52029063,2756.3,2756.0,8.30002315]
[1724589553653,1.52029063,2756.4,2756.0,8.30002315]
[1724589554812,1.52029063,2756.4,2756.0,4.67165315]
[1724589555024,1.52029063,2756.3,2756.0,3.62836]
[1724589556646,1.52029063,2756.3,2756.0,7.25673]
[1724589557646,1.52029063,2756.3,2755.8,5.89635]
[1724589557844,1.52029063,2756.1,2755.8,2.2677]
[1724589558045,1.52029063,2756.2,2755.9,0.56768526]
[1724589558263,1.52029063,2756.2,2755.8,2.2677]
[1724589568678,1.52029063,2756.2,2755.8,5.89631]
[1724589574875,1.52029063,2756.2,2755.9,0.5676798]
[1724589575076,1.52029063,2756.2,2755.8,5.89631]
[1724589578111,1.52029063,2756.2,2755.8,2.2677]
[1724589578496,4.70448004,2756.2,2755.7,3.62883]
[1724589579103,3.99949063,2756.2,2755.7,3.62883]
[1724589580838,1.52029063,2756.2,2755.8,3.62869]
[1724589581240,1.52029063,2756.2,2755.9,2.4559]
[1724589582520,5.14842063,2756.3,2755.9,2.4559]
[1724589582721,1.52029063,2756.2,2755.9,2.4559]
[1724589585356,1.52029063,2756.2,2755.9,6.08437]
[1724589587509,1.52029063,2756.2,2755.7,6.08469]
[1724589587710,1.52029063,2756.1,2755.7,6.08469]
[1724589589126,3.62848,2756.0,2755.5,2.4559]
[1724589589355,3.62848,2756.0,2755.1,0.76024305]
[1724589589356,5.14907063,2755.8,2755.2,6.0853]
[1724589589653,5.14907063,2755.8,2755.2,3.6294]
[1724589589654,1.52029063,2755.6,2755.2,3.6294]
[1724589589859,1.52029063,2755.6,2755.1,3.6295]
[1724589590238,3.87059063,2755.6,2755.1,3.6295]
[1724589590437,1.52029063,2755.5,2755.1,3.6295]
[1724589593350,3.87059063,2755.6,2755.1,3.6295]
[1724589596369,3.87059063,2755.6,2755.1,7.25904]
[1724589596548,3.87059063,2755.6,2755.1,3.6295]
[1724589596920,3.87059063,2755.6,2755.1,6.0854]
[1724589598260,2.3503,2755.6,2755.2,3.62947]
[1724589600140,6.9194354,2755.6,2754.9,3.62981]
[1724589600347,8.43972603,2755.6,2755.0,3.62968]
[1724589602179,3.6291,2755.5,2755.0,3.62968]
[1724589602329,5.14939063,2755.5,2755.0,3.62968]
[1724589602977,5.14939063,2755.5,2755.0,7.25935]
[1724589603268,4.81071603,2755.6,2755.1,3.62961]
[1724589603475,8.43970603,2755.6,2755.1,3.62961]
[1724589604532,4.81071603,2755.6,2755.1,3.62961]
[1724589605069,3.2904254,2755.6,2755.1,3.62961]
[1724589606075,6.9194054,2755.6,2755.1,3.62961]
[1724589606674,3.2904254,2755.6,2755.1,3.62961]
[1724589606848,4.81071603,2755.6,2755.1,3.62961]
[1724589607684,8.43968603,2755.6,2755.1,3.62961]
[1724589608352,6.9193954,2755.6,2755.1,3.62961]
[1724589611194,8.43968603,2755.6,2755.1,3.62961]
[1724589611365,6.9193954,2755.6,2755.1,3.62961]
[1724589611754,3.62911,2755.5,2754.9,7.25967]
[1724589612316,3.62911,2755.5,2754.9,3.6298]
[1724589612796,3.62924,2755.4,2754.9,3.6298]
[1724589614552,4.81071603,2755.6,2754.9,7.25958]
[1724589614867,3.62913,2755.5,2755.0,3.62974]
[1724589615073,3.87059063,2755.6,2755.0,3.62974]
[1724589615254,5.9793,2755.6,2755.0,5.50683292]
[1724589615589,5.9793,2755.6,2755.0,4.598292]
[1724589616221,3.6291,2755.5,2755.0,4.598292]
[1724589616431,3.6291,2755.5,2755.0,3.62974]
[1724589617819,3.6291,2755.5,2754.9,7.2596]
[1724589618020,3.6291,2755.5,2755.0,3.62975]
[1724589619281,3.6291,2755.5,2755.1,0.90853264]
[1724589619481,3.6291,2755.5,2755.0,3.62975]
[1724589619698,3.6291,2755.5,2755.1,0.90851901]
[1724589619933,3.6291,2755.5,2755.0,3.62975]
[1724589620118,3.6291,2755.5,2755.1,0.90851881]
[1724589620284,3.6291,2755.5,2755.0,3.62975]
[1724589620488,3.6291,2755.5,2755.1,0.90851925]
[1724589620839,3.6291,2755.5,2755.0,4.598303]
[1724589621124,3.6291,2755.5,2755.1,0.90852331]
[1724589621320,3.6291,2755.5,2755.0,4.598303]
[1724589621525,3.6291,2755.5,2755.1,0.90851963]
[1724589621739,3.6291,2755.5,2755.0,4.598303]
[1724589621886,3.6291,2755.5,2755.1,0.90851992]
[1724589622084,3.6291,2755.5,2755.0,4.598303]
[1724589622345,3.6291,2755.5,2755.1,1.7075779]
[1724589622534,1.52029063,2755.6,2755.1,3.19126411]
[1724589623317,5.14933063,2755.6,2755.1,3.19126411]
[1724589623643,5.14933063,2755.6,2755.0,4.598303]
[1724589623803,5.14933063,2755.6,2755.1,0.90853361]
[1724589624001,5.14933063,2755.6,2754.9,6.02198]
[1724589624002,9.74134,2755.5,2754.9,6.02198]
[1724589624220,7.63242063,2755.5,2754.7,3.63006]
[1724589624408,3.62939,2755.3,2754.7,3.63006]
[1724589624802,3.62939,2755.3,2754.7,7.26013]
[1724589625016,3.62939,2755.3,2754.7,8.225363]
[1724589625436,2.2546,2755.2,2754.8,3.62999]
[1724589625840,2.2546,2755.2,2754.7,0.965233]
[1724589626338,5.8841,2755.2,2754.7,0.965233]
[1724589626751,5.8841,2755.2,2754.7,3.63015]
[1724589628330,7.40439063,2755.2,2754.7,3.63015]
[1724589630227,3.77489063,2755.2,2754.7,7.26023]
[1724589630427,3.77489063,2755.2,2754.7,3.63008]
[1724589630628,3.77489063,2755.2,2754.7,7.26015]
[1724589631365,3.77489063,2755.2,2754.7,3.63007]
[1724589631536,3.77489063,2755.2,2754.7,7.26015]
[1724589632474,3.77489063,2755.2,2754.8,3.62998]
[1724589632640,1.52029063,2755.2,2754.9,3.62978]
[1724589632968,3.77589063,2755.4,2754.9,3.62978]
[1724589633169,1.52029063,2755.4,2755.0,3.62968]
[1724589633356,1.90193273,2755.5,2754.9,4.28311819]
[1724589633357,1.52029063,2755.3,2755.1,3.6296]
[1724589634925,1.52029063,2755.3,2755.0,3.62967]
[1724589635137,1.52029063,2755.3,2755.1,3.62962]
[1724589635469,1.52029063,2755.3,2755.2,0.56784244]
[1724589637354,1.52029063,2755.3,2755.2,0.56784839]
[1724589638436,1.52029063,2755.4,2755.2,0.56784839]
[1724589638768,1.52029063,2755.4,2755.3,0.56784839]
[1724589639556,1.5835312,2755.4,2755.3,0.56784839]
[1724589640364,5.53293334,2755.5,2754.9,3.62978]
[1724589640569,1.52423947,2755.4,2755.0,0.56783504]
[1724589640877,1.52423947,2755.4,2755.1,0.56783504]
[1724589641172,1.52423947,2755.4,2755.2,0.56783504]
[1724589641339,1.52423947,2755.4,2755.0,3.62975]
[1724589641340,5.53441645,2755.5,2755.3,0.56783504]
[1724589641542,5.53441645,2755.5,2755.0,3.62975]
[1724589641763,1.52425777,2755.3,2755.1,0.56783232]
[1724589641927,1.52425777,2755.4,2755.2,0.56783232]
[1724589642132,1.52425777,2755.4,2755.3,0.56783232]
[1724589642499,5.53441645,2755.5,2755.0,3.62975]
[1724589642680,1.52428104,2755.3,2755.1,0.56783481]
[1724589642880,1.52428104,2755.3,2755.2,0.56783481]
[1724589646955,3.82408104,2755.3,2755.2,0.56783481]
[1724589650030,1.52428104,2755.3,2755.2,0.56783481]
[1724589658622,1.52428104,2755.3,2755.2,0.56784243]
[1724589660686,1.58751934,2755.3,2755.2,0.56784243]
[1724589661417,1.52428104,2755.3,2755.2,0.56784243]
[1724589663830,6.08952846,2755.3,2755.2,0.56784243]
[1724589663982,6.47078055,2755.3,2755.2,0.56784243]
[1724589665401,6.47078055,2755.3,2754.7,3.63015]
[1724589665600,1.52439907,2755.2,2754.8,0.56788574]
[1724589666231,1.52439907,2755.2,2754.9,0.56788574]
[1724589666533,1.52439907,2755.2,2755.0,0.56788574]
[1724589666832,1.52439907,2755.2,2755.1,0.56788574]
[1724589667039,1.52439907,2755.3,2755.1,0.56788574]
[1724589667198,1.52439907,2755.3,2755.2,0.56788574]
[1724589668940,1.52439907,2755.3,2755.2,0.5678531]
[1724589670044,1.90549249,2755.4,2755.2,0.5678531]
[1724589670235,1.90549249,2755.3,2755.0,6.07024]
[1724589670392,1.52417726,2755.2,2755.1,0.56786192]
[1724589672134,1.52417726,2755.2,2755.0,2.4405]
[1724589672335,1.52417726,2755.2,2755.1,0.56786232]
[1724589672647,1.52426624,2755.2,2755.1,0.56786232]
[1724589676219,1.90533427,2755.3,2755.2,0.56787172]
[1724589677446,1.90533427,2755.3,2755.2,0.56785477]
[1724589677958,1.90599966,2755.3,2755.2,0.56785477]
[1724589678943,1.90599966,2755.3,2754.9,3.62982]
[1724589679247,1.90599966,2755.3,2755.0,4.19761538]
[1724589679451,1.52489533,2755.2,2755.1,0.56785538]
[1724589682075,1.58813812,2755.2,2755.1,0.56785538]
[1724589682374,1.52489533,2755.3,2755.1,2.89745538]
[1724589682577,1.52489533,2755.3,2755.2,0.56785538]
[1724589683238,1.90552741,2755.4,2755.2,0.56785538]
[1724589683542,1.5243835,2755.3,2755.1,2.3296]
[1724589683749,1.5243835,2755.3,2755.2,0.56783712]
[1724589683949,1.90552741,2755.4,2755.2,0.56783712]
[1724589684154,1.90552741,2755.4,2755.3,0.56784056]
[1724589685697,1.90552741,2755.4,2755.3,0.56783938]
[1724589692457,1.90552741,2755.4,2755.1,2.3296]
[1724589692663,1.52444494,2755.3,2755.2,0.56783885]
[1724589692872,1.9055557,2755.4,2755.2,0.56783885]
[1724589693072,1.9055557,2755.4,2755.3,0.56783885]
[1724589693610,1.9055557,2755.4,2755.1,2.3296]
[1724589693758,1.52446782,2755.2,2755.1,2.3296]
[1724589694102,1.52446782,2755.2,2755.1,3.288514]
[1724589694617,1.47446782,2755.2,2755.1,3.288514]
[1724589694903,1.9055557,2755.4,2755.1,4.19705635]
[1724589695102,1.9055557,2755.4,2755.1,3.288514]
[1724589697551,1.90557936,2755.4,2755.1,3.288514]
[1724589702370,1.52446407,2755.2,2755.1,3.288514]
[1724589702540,1.52446407,2755.2,2755.1,4.19706088]
[1724589702956,0.06324149,2755.3,2755.2,2.3899]
[1724589703242,1.52446407,2755.9,2755.7,3.62884]
[1724589703454,7.46,2756.3,2755.9,6.01839]
[1724589703455,1.52446407,2756.1,2755.9,6.01839]
[1724589703881,1.90557936,2756.3,2755.9,6.01839]
[1724589703882,1.52446407,2756.2,2755.9,6.01839]
[1724589704096,1.52446407,2756.2,2756.0,0.69992597]
[1724589704263,1.52446407,2756.1,2755.9,2.3899]
[1724589704465,1.52446407,2756.2,2755.9,2.3899]
[1724589706519,5.53349936,2756.4,2755.9,6.01838]
[1724589706520,1.52446407,2756.3,2755.9,6.01838]
[1724589706655,1.52446407,2756.3,2756.0,3.62841]
[1724589707366,1.52446407,2756.4,2756.0,3.62841]
[1724589707590,1.52446407,2756.4,2756.0,4.593089]
[1724589708604,1.52446407,2756.4,2756.1,3.62822]
[1724589708807,1.52446407,2756.5,2756.1,3.62822]
[1724589708959,1.52446407,2756.5,2756.3,3.62803]
[1724589709161,1.52446407,2756.6,2756.3,6.65504981]
[1724589709374,1.52446407,2756.7,2756.3,6.65504981]
[1724589709575,1.52446407,2756.7,2756.3,6.01793]
[1724589710857,1.52446407,2756.7,2756.3,2.3899]
[1724589711586,1.52446407,2756.8,2756.3,6.01786]
[1724589711810,1.52446407,2756.9,2756.3,6.01786]
[1724589712190,5.15179407,2756.9,2756.3,6.01786]
[1724589712391,3.62733,2756.9,2756.4,0.601786]
[1724589715678,1.52446407,2757.1,2756.5,2.3899]
[1724589715879,5.15139407,2757.2,2756.5,2.3899]
[1724589716091,8.77837407,2757.2,2756.5,9.64527]
[1724589716276,3.62693,2757.2,2756.5,6.01758]
[1724589717207,3.62693,2757.2,2756.6,3.62761]
[1724589718178,3.62693,2757.2,2756.5,6.01758]
[1724589718179,7.2539,2757.2,2756.5,6.01758]
[1724589718379,7.2539,2757.2,2756.5,9.64525]
[1724589718579,7.2539,2757.2,2756.5,10.609775]
[1724589718831,3.62693,2757.2,2756.6,3.62764]
[1724589719929,7.46,2757.3,2756.8,2.3899]
[1724589720086,3.62674,2757.3,2756.8,2.3899]
[1724589724101,3.62688,2757.2,2756.8,2.3899]
[1724589724306,3.69007947,2757.2,2756.7,3.62743]
[1724589724508,3.69007947,2757.2,2756.7,4.6883875]
[1724589727020,3.69007947,2757.2,2756.7,1.0609575]
[1724589727420,3.69007947,2757.2,2756.7,4.6884775]
[1724589728348,3.69007947,2757.2,2756.7,1.0609575]
[1724589728667,3.627,2757.1,2756.6,2.3899]
[1724589729047,3.627,2757.1,2756.6,6.01755]
[1724589730000,7.31704947,2757.2,2756.6,6.01755]
[1724589730967,3.62701,2757.1,2756.6,2.3899]
[1724589733005,6.02961,2757.1,2756.6,2.3899]
[1724589734815,3.62701,2757.1,2756.6,2.3899]
[1724589735100,3.62701,2757.1,2756.6,3.354428]
[1724589736458,3.69007947,2757.2,2756.6,6.982078]
[1724589738093,3.69007947,2757.2,2756.7,3.6275]
[1724589738300,0.06319947,2757.2,2756.8,2.4109]
[1724589738514,3.62665,2757.4,2756.9,4.23108]
[1724589738682,3.62665,2757.4,2756.9,0.60384]
[1724589739017,0.06319626,2757.1,2756.9,0.60384]
[1724589742111,3.62673,2757.3,2756.9,0.60384]
[1724589742320,0.06319487,2757.2,2756.9,0.60384]
[1724589742471,0.06319487,2757.2,2757.0,0.66421]
[1724589747520,1.52446407,2757.4,2757.0,0.66421]
[1724589748538,1.52446407,2757.3,2757.0,0.66421]
[1724589750614,1.52446407,2757.2,2756.9,3.62717]
[1724589750819,1.52446407,2757.2,2756.7,3.62744]
[1724589751014,1.52446407,2757.2,2756.8,3.62739]
[1724589751504,7.78328967,2757.3,2756.8,3.62739]
[1724589751505,1.52446407,2757.1,2756.8,3.62739]
[1724589751727,1.52446407,2757.1,2756.9,0.725483]
[1724589751941,7.78328967,2757.3,2756.9,0.725483]
[1724589751942,1.52446407,2757.2,2756.9,0.725483]
[1724589752415,1.52446407,2757.1,2756.9,0.725483]
[1724589755524,1.52446407,2757.0,2756.9,0.725483]
[1724589756019,1.52446407,2757.0,2756.9,1.29296007]
[1724589757587,1.52446407,2757.0,2756.9,1.29295965]
[1724589760931,1.52446407,2757.0,2756.9,0.725483]
[1724589761136,1.52446407,2757.0,2756.9,1.29293872]
[1724589769760,4.29223807,2757.0,2756.9,0.56745572]
[1724589769947,2.3877,2757.0,2756.6,0.90801291]
[1724589770142,1.9047687,2756.8,2756.7,0.56751461]
[1724589770798,1.9047687,2756.8,2756.5,3.62771]
[1724589770997,1.1428351,2756.6,2756.5,4.353279]
[1724589771292,1.1428351,2756.6,2756.5,5.26130233]
[1724589771452,1.1428351,2756.6,2756.5,5.82881691]
[1724589773806,1.1428351,2756.6,2756.5,5.82878943]
[1724589774316,1.1428351,2756.6,2756.5,4.353279]
[1724589774519,1.1428351,2756.6,2756.5,8.08288937]
[1724589774709,1.1428351,2756.6,2756.5,9.33138814]
[1724589776219,1.1428351,2756.6,2756.5,7.51537538]
[1724589777627,1.1428351,2756.6,2756.5,6.607379]
[1724589777799,1.1428351,2756.6,2756.5,7.51538167]
[1724589778244,1.1428351,2756.6,2756.5,11.14316167]
[1724589778441,1.1428351,2756.7,2756.6,3.62765]
[1724589778763,1.52378013,2756.8,2756.6,4.74195317]
[1724589778911,1.14277206,2756.7,2756.6,4.74195317]
[1724589780434,1.14277206,2756.7,2756.6,9.27757766]
[1724589781055,1.14277206,2756.7,2756.6,8.36960317]
[1724589781239,1.14277206,2756.7,2756.6,9.27757327]
[1724589781426,1.14277206,2756.7,2756.6,8.36960317]
[1724589782610,1.14277206,2756.7,2756.6,4.74195317]
[1724589782910,1.14277206,2756.7,2756.6,3.62765]
[1724589783354,1.52378013,2756.8,2756.6,3.62765]
[1724589783556,1.52378013,2756.8,2756.6,7.2553]
[1724589783748,1.52378013,2756.8,2756.7,3.62752]
[1724589787572,1.9046277,2756.9,2756.7,3.62752]
[1724589789998,1.90449356,2756.9,2756.7,3.62752]
[1724589790997,1.52357068,2756.8,2756.7,3.62752]
[1724589793537,1.90449356,2756.9,2756.7,3.62752]
[1724589794784,1.9044894,2756.9,2756.7,3.62752]
[1724589800030,1.9045971,2756.9,2756.7,3.62752]
[1724589804634,1.90464671,2756.9,2756.7,3.62752]
[1724589805269,1.52369794,2756.8,2756.7,8.2846959]
[1724589805463,1.52369794,2756.9,2756.8,3.62739]
[1724589805762,1.90464671,2757.0,2756.9,3.62726]
[1724589805763,1.52369794,2757.0,2756.9,3.62726]
[1724589805901,1.52369794,2757.0,2756.9,4.77805358]
[1724589817676,1.52369794,2757.1,2756.9,4.77805358]
[1724589826391,1.14220616,2757.0,2756.9,4.77805358]
[1724589828107,1.52369794,2757.1,2756.9,4.77805358]
[1724589830520,1.14214082,2757.0,2756.9,4.77805358]
[1724589834764,1.14214082,2757.0,2756.9,8.40531358]
[1724589836440,1.52369794,2757.2,2756.9,8.40531358]
[1724589836441,1.14214082,2757.1,2757.0,3.62713]
[1724589836642,1.14214082,2757.1,2757.0,4.69921836]
[1724589841121,1.52369794,2757.1,2757.0,4.69921836]
[1724589841472,1.52369794,2757.1,2756.7,3.6274]
[1724589841677,1.14224632,2756.9,2756.7,3.6274]
[1724589842504,1.14224632,2756.8,2756.7,3.6274]
[1724589844304,1.14224632,2756.8,2756.7,4.4254699]
[1724589850379,1.14224632,2756.8,2756.7,4.76541508]
[1724589851176,1.52369794,2756.9,2756.8,3.62739]
[1724589856998,1.52439042,2756.9,2756.8,3.62739]
[1724589857212,4.37256059,2757.0,2756.8,3.62739]
[1724589858104,1.52437015,2756.9,2756.8,3.62739]
[1724589877375,1.52437015,2756.9,2756.8,7.25478]
[1724589877690,1.14316808,2757.0,2756.9,3.62726]
[1724589877915,1.14316808,2757.2,2757.0,5.93973]
[1724589878193,1.14316808,2757.3,2757.2,7.25372]
[1724589879249,1.14316808,2757.3,2757.2,8.5013598]
[1724589879589,1.14316808,2757.4,2757.3,3.62673]
[1724589879898,1.52437015,2757.5,2757.4,3.6266]
[1724589882566,1.52437015,2757.5,2757.4,4.351933]
[1724589883462,1.52437015,2757.5,2757.4,3.6266]
[1724589883691,1.52437015,2757.6,2757.4,3.6266]
[1724589885176,1.1413389,2757.5,2757.4,3.6266]
[1724589886108,1.52437015,2757.6,2757.4,3.6266]
[1724589886312,1.141219,2757.5,2757.4,3.6266]
[1724589886510,1.141219,2757.5,2757.4,4.351933]
[1724589888476,1.141219,2757.5,2757.4,6.741633]
[1724589892217,1.141219,2757.6,2757.5,3.62647]
[1724589893029,1.141219,2757.7,2757.6,3.62634]
[1724589893236,1.141219,2757.7,2757.6,4.6631243]
[1724589894477,1.20439768,2757.8,2757.6,4.6631243]
[1724589896067,1.20439768,2757.8,2757.6,1.0367843]
[1724589896278,1.20439768,2757.8,2757.5,7.25286]
[1724589896575,1.20439768,2757.8,2757.5,3.62639]
[1724589900332,1.20439768,2757.8,2757.5,3.62638]
[1724589902049,3.622919,2757.7,2757.3,3.62666]
[1724589902368,1.141219,2757.6,2757.1,3.6269]
[1724589902530,1.141219,2757.6,2757.2,0.56736026]
[1724589902729,7.63228015,2757.7,2757.1,4.30945738]
[1724589902730,1.141219,2757.5,2757.1,4.30945738]
[1724589902933,7.63228015,2757.7,2757.2,0.56736128]
[1724589902934,1.141219,2757.6,2757.2,0.56736128]
[1724589903130,1.141219,2757.6,2757.1,4.30945738]
[1724589903394,1.141219,2757.5,2757.2,1.08907565]
[1724589903686,1.141219,2757.6,2757.3,4.19399253]
[1724589903870,1.141219,2757.6,2757.4,4.19396253]
[1724589904062,1.141219,2757.6,2757.4,3.6266]
[1724589906406,1.141219,2757.6,2757.5,0.56734524]
[1724589906707,3.622919,2757.7,2757.5,0.56734524]
[1724589906855,3.622919,2757.7,2757.4,3.6266]
[1724589907056,1.141219,2757.6,2757.5,0.56733754]
[1724589907359,3.622919,2757.7,2757.5,0.56733754]
[1724589907576,1.141219,2757.6,2757.4,3.6266]
[1724589907857,1.141219,2757.6,2757.5,0.56733536]
[1724589908909,2.369,2757.5,2757.1,3.62698]
[1724589909121,1.14032383,2757.4,2757.2,0.567393]
[1724589909321,1.14032383,2757.4,2757.1,3.62698]
[1724589909322,2.369,2757.2,2756.6,3.62756]
[1724589909608,1.14052954,2757.0,2756.7,0.56748238]
[1724589909755,3.88970605,2757.2,2756.8,0.56748238]
[1724589909756,1.14052954,2757.1,2756.8,0.56748238]
[1724589909970,1.14052954,2757.0,2756.9,0.56748238]
[1724589910478,1.14052954,2757.0,2756.6,3.62756]
[1724589910685,2.369,2756.9,2756.7,0.56749884]
[1724589910906,3.50952954,2756.9,2756.8,0.56749884]
[1724589911116,3.23473356,2756.9,2756.5,3.62769]
[1724589911433,3.23473356,2756.9,2756.4,3.62782]
[1724589911434,1.14051954,2756.8,2756.6,4.19512836]
[1724589911577,1.14051954,2756.8,2756.4,3.62782]
[1724589911785,1.14051954,2756.8,2756.5,0.56753763]
[1724589912001,1.14051954,2756.8,2756.6,0.56753763]
[1724589912203,1.14051954,2756.8,2756.4,3.62782]
[1724589912412,1.14051954,2756.8,2756.5,0.56753288]
[1724589912595,1.14051954,2756.8,2756.4,3.62782]
[1724589912797,1.14051954,2756.8,2756.5,0.56752903]
[1724589913006,1.14051954,2756.8,2756.4,3.62782]
[1724589914407,1.14051954,2756.8,2756.4,7.25565]
[1724589914616,3.50951954,2756.9,2756.5,4.19527686]
[1724589914879,1.14051954,2756.8,2756.5,3.62777]
[1724589917409,3.50951954,2756.9,2756.5,3.62777]
[1724589917907,3.50951954,2756.9,2756.6,3.62762]